[Event "DVM U12 2019"]
[Site "Magedburg"]
[Date "2019.12.30"]
[Round "7"]
[White "Tomasjan, Samuel"]
[Black "Rumpold, Jaron"]
[Result "1-0"]
[ECO "B56"]
[WhiteElo "1662"]
[BlackElo "1123"]
[Annotator "NA"]
[PlyCount "109"]
[EventDate "2019.12.27"]
[EventType "team-tourn"]
[EventRounds "7"]
[EventCountry "GER"]
[SourceTitle "playchess.com"]
[Source "ChessBase"]
[SourceQuality "1"]
[WhiteTeam "SF Brackel"]
[BlackTeam "SV Roter Turm Halle"]
[WhiteTeamCountry "GER"]
[BlackTeamCountry "GER"]
[TimeControl "40/5400+30:1800+30"]

1. e4 {[%emt 0:00:00]} c5 {[%emt 0:00:00]} 2. Nf3 {[%emt 0:00:00]} d6 {[%emt 0:00:00]} 3. d4 {[%emt 0:00:59]} cxd4 {[%emt 0:00:00]} 4. Nxd4 {[%emt 0:00:08]} Nf6 {[%emt 0:00:00]} 5. Nc3 Nc6 {[%emt 0:00:22]} 6. Nxc6 {[%emt 0:01:14]} bxc6 {[%emt 0:00:27]} 7. Bc4 {[%emt 0:00:35]} e5 {[%emt 0:01:20]} 8. O-O {[%emt 0:00:43]} Be7 {[%emt 0:00:40]} 9. Bg5 {[%emt 0:08:01]} O-O {[%emt 0:01:33]} 10. Qd2 {[%emt 0:07:10]} Be6 {[%emt 0:01:57]} 11. Bb3 {[%emt 0:02:40]} h6 {[%emt 0:02:52]} 12. Bh4 {[%emt 0:02:18]} Nh5 {[%emt 0:09:55]} 13. Bxe7 {[%emt 0:03:33]} Qxe7 {[%emt 0:00:19]} 14. Rad1 {[%emt 0:02:59]} Rfd8 {[%emt 0:01:50]} 15. Ba4 {[%emt 0:04:56]} Rac8 {[%emt 0:02:31]} 16. Qe2 {[%emt 0:03:26]} Nf4 {[%emt 0:09:19]} 17. Qa6 {[%emt 0:00:30]} Qc7 {[%emt 0:00:30]} 18. Ne2 {[%emt 0:03:17]} Nxe2+ {[%emt 0:06:22]} 19. Qxe2 {[%emt 0:00:35]} d5 {[%emt 0:03:33]} 20. h3 {[%emt 0:06:59]} d4 {[%emt 0:07:38]} 21. Bb3 {[%emt 0:03:58]} Bxb3 {[%emt 0:00:30]} 22. axb3 {[%emt 0:00:17]} c5 {[%emt 0:03:05]} 23. Qc4 {[%emt 0:01:28]} a5 {[%emt 0:05:40]} 24. Ra1 {[%emt 0:02:05]} Ra8 {[%emt 0:06:06]} 25. Ra4 {[%emt 0:01:35]} Rdb8 {[%emt 0:05:21]} 26. Rfa1 {[%emt 0:02:19]} Ra7 {[%emt 0:07:46]} 27. Qd3 {[%emt 0:15:56]} Rb4 {[%emt 0:04:03]} 28. R1a2 {[%emt 0:02:39]} Qb6 {[%emt 0:03:09]} 29. Qd2 {[%emt 0:13:45]} Rxa4 {[%emt 0:03:49]} 30. Rxa4 {[%emt 0:00:11]} Qb5 {[%emt 0:01:49]} 31. f3 {[%emt 0:01:30]} Qb6 {[%emt 0:01:34]} 32. Qd3 {[%emt 0:00:57]} Qa6 {[%emt 0:01:44]} 33. Qxa6 {[%emt 0:04:55]} Rxa6 {[%emt 0:00:10]} 34. Kf1 {[%emt 0:02:58]} Kf8 {[%emt 0:01:53]} 35. g4 {[%emt 0:00:47]} g5 {[%emt 0:01:16]} 36. Ke1 {[%emt 0:00:28]} Ke7 {[%emt 0:01:18]} 37. c3 {[%emt 0:00:42]} Kd6 {[%emt 0:02:42]} 38. Kd2 {[%emt 0:01:11]} Kc6 {[%emt 0:02:17]} 39. Kd3 {[%emt 0:00:49]} Kb5 {[%emt 0:02:54]} 40. c4+ {[%emt 0:00:47]} Kc6 {[%emt 0:01:01]} 41. h4 {[%emt 0:02:11]} f6 {[%emt 0:04:08]} 42. Ra1 {[%emt 0:00:27]} Kd7 {[%emt 0:03:47]} 43. b4 {[%emt 0:08:48]} cxb4 {[%emt 0:02:29]} 44. c5 {[%emt 0:00:16]} Kc7 {[%emt 0:06:19]} 45. Kc4 {[%emt 0:00:36]} Kc6 {[%emt 0:02:44]} 46. Rh1 {[%emt 0:01:44]} Kc7 {[%emt 0:02:36]} 47. Kb5 {[%emt 0:00:59]} Kb7 {[%emt 0:02:10]} 48. Rc1 {[%emt 0:02:28]} Rc6 {[%emt 0:01:21]} 49. Kxa5 {[%emt 0:03:00]} Ra6+ {[%emt 0:03:09]} 50. Kxb4 {[%emt 0:01:16]} Kc6 {[%emt 0:01:07]} 51. Kc4 {[%emt 0:05:16]} Ra4+ {[%emt 0:01:32]} 52. b4 {[%emt 0:02:44]} Ra3 {[%emt 0:01:13]} 53. b5+ {[%emt 0:01:55]} Kc7 {[%emt 0:01:19]} 54. hxg5 {[%emt 0:01:00]} hxg5 {[%emt 0:00:18] normal} 55. Rh1 {[%emt 0:02:34] normal} 1-0

[Event "DVM U12 2019"]
[Site "Magedburg"]
[Date "2019.12.30"]
[Round "7"]
[White "Brandstrup, Luca Alexander"]
[Black "Koulouris, Fabian"]
[Result "1/2-1/2"]
[ECO "C00"]
[WhiteElo "1602"]
[BlackElo "1261"]
[Annotator "NA"]
[PlyCount "84"]
[EventDate "2019.12.27"]
[EventType "team-tourn"]
[EventRounds "7"]
[EventCountry "GER"]
[SourceTitle "playchess.com"]
[Source "ChessBase"]
[SourceQuality "1"]
[WhiteTeam "Hamburger SK"]
[BlackTeam "SC Kreuzberg"]
[WhiteTeamCountry "GER"]
[TimeControl "40/5400+30:1800+30"]

1. e4 {[%emt 0:00:00]} e6 {[%emt 0:00:00]} 2. d4 {[%emt 0:00:00]} d5 {[%emt 0:00:00]} 3. Bd3 {[%emt 0:00:39]} dxe4 {[%emt 0:00:50]} 4. Bxe4 {[%emt 0:00:25]} Nf6 {[%emt 0:00:27]} 5. Bg5 {[%emt 0:01:47]} h6 {[%emt 0:00:12]} 6. Bxf6 {[%emt 0:01:16]} Qxf6 {[%emt 0:00:22]} 7. Ne2 {[%emt 0:00:36]} Bd6 {[%emt 0:00:25]} 8. h3 {[%emt 0:05:07]} O-O {[%emt 0:03:00]} 9. O-O {[%emt 0:00:29]} c6 {[%emt 0:02:54]} 10. f4 {[%emt 0:04:20]} c5 {[%emt 0:01:00]} 11. c3 {[%emt 0:01:05]} cxd4 {[%emt 0:02:16]} 12. cxd4 {[%emt 0:00:15]} Nc6 {[%emt 0:01:01]} 13. Nbc3 {[%emt 0:03:00]} Rd8 {[%emt 0:02:57]} 14. Qd2 {[%emt 0:01:42]} Bc5 {[%emt 0:04:10]} 15. Bxc6 {[%emt 0:01:38]} Bxd4+ {[%emt 0:00:58]} 16. Nxd4 {[%emt 0:06:55]} Rxd4 {[%emt 0:00:02]} 17. Qf2 {[%emt 0:03:55]} bxc6 {[%emt 0:00:15]} 18. Rad1 {[%emt 0:07:05]} Rd8 {[%emt 0:04:53]} 19. Ne4 {[%emt 0:01:02]} Qe7 {[%emt 0:01:06]} 20. Qc5 {[%emt 0:01:46]} Qxc5+ {[%emt 0:02:01]} 21. Nxc5 {[%emt 0:00:15]} Rd5 {[%emt 0:01:05]} 22. Nb3 {[%emt 0:01:52]} Ba6 {[%emt 0:01:08]} 23. Rfe1 {[%emt 0:01:54]} Rad8 {[%emt 0:00:35]} 24. Rc1 {[%emt 0:01:06]} R8d6 {[%emt 0:01:04]} 25. Rc2 {[%emt 0:05:15]} Bb5 {[%emt 0:01:42]} 26. Kh2 {[%emt 0:03:39]} Ba4 {[%emt 0:01:04]} 27. Rec1 {[%emt 0:01:39]} Rb5 {[%emt 0:08:25]} 28. Rxc6 {[%emt 0:01:34]} Rxc6 29. Rxc6 {[%emt 0:00:08]} Bxb3 {[%emt 0:01:39]} 30. axb3 {[%emt 0:00:29]} Rxb3 {[%emt 0:00:04]} 31. Ra6 {[%emt 0:00:13]} Rxb2 {[%emt 0:00:10]} 32. Rxa7 {[%emt 0:00:06]} g6 {[%emt 0:01:34]} 33. Ra5 {[%emt 0:03:12]} Kg7 {[%emt 0:00:08]} 34. Rc5 {[%emt 0:01:45]} Kf6 {[%emt 0:01:07]} 35. h4 {[%emt 0:00:24]} Rd2 {[%emt 0:00:32]} 36. Kh3 {[%emt 0:02:47]} Rd5 {[%emt 0:00:24]} 37. Rc4 {[%emt 0:00:17]} h5 {[%emt 0:00:43]} 38. g3 {[%emt 0:01:51]} Kf5 {[%emt 0:00:40]} 39. Rb4 {[%emt 0:01:26]} f6 {[%emt 0:00:16]} 40. Rb3 {[%emt 0:00:41]} Ra5 {[%emt 0:02:04] normal} 41. Rc3 {[%emt 0:31:44] normal} Rd5 {normal} 42. Re3 {[%emt 0:01:58] normal} Rc5 {[%emt 0:01:31] normal} 1/2-1/2

[Event "DVM U12 2019"]
[Site "Magedburg"]
[Date "2019.12.30"]
[Round "7"]
[White "Gold, Jan Christian"]
[Black "Freude, Max"]
[Result "0-1"]
[ECO "C56"]
[WhiteElo "1527"]
[BlackElo "1809"]
[Annotator "NA"]
[PlyCount "56"]
[EventDate "2019.12.27"]
[EventType "team-tourn"]
[EventRounds "7"]
[EventCountry "GER"]
[SourceTitle "playchess.com"]
[Source "ChessBase"]
[SourceQuality "1"]
[WhiteTeam "SK Bad Homburg"]
[BlackTeam "SV Empor Berlin"]
[BlackTeamCountry "GER"]
[TimeControl "40/5400+30:1800+30"]

1. e4 {[%emt 0:00:00]} e5 {[%emt 0:00:00]} 2. Bc4 {[%emt 0:00:00]} Nf6 {[%emt 0:00:00]} 3. d4 {[%emt 0:00:00]} exd4 {[%emt 0:00:00]} 4. Nf3 {[%emt 0:00:00]} Nc6 {[%emt 0:00:00]} 5. O-O {[%emt 0:00:17]} Nxe4 {[%emt 0:00:51]} 6. Re1 {[%emt 0:00:16]} d5 {[%emt 0:00:03]} 7. Bxd5 {[%emt 0:00:05]} Qxd5 {[%emt 0:00:04]} 8. Nc3 {[%emt 0:00:05]} Qa5 {[%emt 0:00:11]} 9. Rxe4+ {[%emt 0:00:30]} Be6 {[%emt 0:03:01] unterminated} 10. Nxd4 {[%emt 0:04:31] unterminated} O-O-O {[%emt 0:03:03] unterminated} 11. Nce2 {[%emt 0:02:31] unterminated} Qd5 {[%emt 0:14:08] C56: Two Knights: 4 d4 exd4 5 0-0 Nxe4} (11... Nxd4 $142 12. Nxd4 Bf5) 12. Nc3 {[%emt 0:00:13] unterminated} Qc4 {[%emt 0:05:01] unterminated} 13. Nce2 $146 {[%emt 0:20:34] unterminated} ({Predecessor:} 13. Be3 f5 14. Rxe6 Nxd4 15. Re5 Bb4 16. Bxd4 Rxd4 17. Qf3 g6 18. Rae1 {0-1 (31) Vojta,J (1945)-Kumala,A (2197) Pardubice 2017}) 13... f5 {[%emt 0:15:38] unterminated} 14. b3 {[%emt 0:20:36] unterminated} Qd5 {[%emt 0:01:43] unterminated} 15. Nc3 {[%emt 0:00:43]} Qd7 {[%emt 0:00:20] unterminated} 16. Rxe6 Nxd4 {[%emt 0:00:32] unterminated} 17. Re1 {[%emt 0:03:30] unterminated} Bb4 {[%emt 0:05:27] unterminated} 18. Bb2 {[%emt 0:02:18] unterminated} Rhe8 {[%emt 0:03:17] unterminated} 19. Rxe8 $2 {[%emt 0:06:20]} (19. Qd3 $17 {keeps fighting.}) 19... Rxe8 $2 {[%emt 0:00:44] unterminated} (19... Qxe8 $19 20. Kf1 {[#]} Nxb3 $1 {[%mdl 512]} 21. axb3 Rxd1+ 22. Rxd1 Qe5) 20. Kf1 {[%emt 0:04:07] [#] unterminated} Qd6 $19 {[%emt 0:05:22]} 21. Qh5 {[%emt 0:21:51]} g6 {[%emt 0:01:10]} 22. Qxh7 {[%emt 0:01:25]} Bxc3 23. Bxc3 {[%emt 0:00:31]} Qa6+ {[%emt 0:03:55]} 24. Kg1 {[%emt 0:00:09]} Ne2+ 25. Kh1 {[%emt 0:00:11]} Nxc3 {[%emt 0:00:24]} 26. Qf7 {[%emt 0:00:35]} Qe6 {[%emt 0:01:49]} 27. Qxe6+ {[%emt 0:00:17]} Rxe6 {[%emt 0:00:05]} 28. Re1 {[%emt 0:00:05]} Rxe1# {[%emt 0:00:06] normal} 0-1

[Event "DVM U12 2019"]
[Site "Magedburg"]
[Date "2019.12.30"]
[Round "7"]
[White "Lieske, Aaron"]
[Black "Malchereck, Zion"]
[Result "0-1"]
[ECO "B32"]
[WhiteElo "1493"]
[BlackElo "1543"]
[Annotator "NA"]
[PlyCount "66"]
[EventDate "2019.12.27"]
[EventType "team-tourn"]
[EventRounds "7"]
[EventCountry "GER"]
[SourceTitle "playchess.com"]
[Source "ChessBase"]
[SourceQuality "1"]
[WhiteTeam "SC Kreuzberg"]
[BlackTeam "Hamburger SK"]
[BlackTeamCountry "GER"]
[TimeControl "40/5400+30:1800+30"]

1. e4 {[%emt 0:00:00]} c5 {[%emt 0:00:00]} 2. Nf3 {[%emt 0:00:00]} Nc6 {[%emt 0:00:00]} 3. d4 {[%emt 0:00:09]} cxd4 {[%emt 0:00:00]} 4. Nxd4 {[%emt 0:00:11]} e5 {[%emt 0:00:07]} 5. Nf3 {[%emt 0:00:48]} Nf6 {[%emt 0:00:15]} 6. Nc3 {[%emt 0:03:15]} Bb4 {[%emt 0:00:22]} 7. Bd2 {[%emt 0:01:47]} Bxc3 {[%emt 0:01:36]} 8. Bxc3 {[%emt 0:00:18]} Nxe4 {[%emt 0:00:12]} 9. Qd3 {[%emt 0:08:25]} Nxc3 {[%emt 0:00:48]} 10. Qxc3 {[%emt 0:01:02]} O-O {[%emt 0:00:25]} 11. O-O-O {[%emt 0:00:34]} Qe7 {[%emt 0:03:32]} 12. Bb5 {[%emt 0:01:37]} e4 {[%emt 0:06:30]} 13. Nd2 {[%emt 0:05:58]} d5 {[%emt 0:04:12]} 14. Bxc6 {[%emt 0:04:43]} bxc6 {[%emt 0:00:12]} 15. Qxc6 {[%emt 0:00:42]} Bb7 {[%emt 0:00:07]} 16. Qa4 {[%emt 0:05:34]} Rfc8 {[%emt 0:02:46]} 17. Qd4 {[%emt 0:07:23]} Qc7 {[%emt 0:03:07]} 18. c3 {[%emt 0:05:14]} Rab8 {[%emt 0:00:18]} 19. Kb1 {[%emt 0:03:56]} Ba6 {[%emt 0:01:45]} 20. Ka1 {[%emt 0:06:34]} Qb7 {[%emt 0:00:59]} 21. Nb3 {[%emt 0:04:53]} Bc4 {[%emt 0:00:13]} 22. Rd2 {[%emt 0:01:38]} Qa6 {[%emt 0:10:53]} 23. Nc1 {[%emt 0:05:33]} Qa5 {[%emt 0:05:14]} 24. f3 {[%emt 0:05:35]} Re8 {[%emt 0:11:10]} 25. Re1 {[%emt 0:02:57]} exf3 {[%emt 0:00:23]} 26. Rxe8+ {[%emt 0:00:26]} Rxe8 {[%emt 0:00:28]} 27. b3 {[%emt 0:02:48]} Re4 {[%emt 0:05:41]} 28. Qg1 {[%emt 0:03:03]} Qxc3+ {[%emt 0:00:20]} 29. Rb2 {[%emt 0:00:57]} Re1 {[%emt 0:00:18]} 30. Qxe1 {[%emt 0:05:40]} Qxe1 {[%emt 0:00:54]} 31. bxc4 {[%emt 0:00:37]} Qxc1+ {[%emt 0:00:43]} 32. Rb1 {[%emt 0:00:12]} Qc3+ {[%emt 0:00:15]} 33. Rb2 {[%emt 0:00:10]} fxg2 {[%emt 0:00:27] normal} 0-1

[Event "DVM U12 2019"]
[Site "Magedburg"]
[Date "2019.12.30"]
[Round "7"]
[White "Freude, Paul"]
[Black "Radutny, Alexej"]
[Result "1-0"]
[ECO "C08"]
[WhiteElo "1491"]
[BlackElo "1045"]
[Annotator "NA"]
[PlyCount "45"]
[EventDate "2019.12.27"]
[EventType "team-tourn"]
[EventRounds "7"]
[EventCountry "GER"]
[SourceTitle "playchess.com"]
[Source "ChessBase"]
[SourceQuality "1"]
[WhiteTeam "SV Empor Berlin"]
[BlackTeam "SK Bad Homburg"]
[WhiteTeamCountry "GER"]
[TimeControl "40/5400+30:1800+30"]

1. e4 {[%emt 0:00:00]} e6 {[%emt 0:00:00]} 2. d4 {[%emt 0:00:00]} d5 {[%emt 0:00:00]} 3. Nd2 {[%emt 0:00:00]} c5 {[%emt 0:00:33]} 4. exd5 {[%emt 0:00:11]} exd5 {[%emt 0:00:07]} 5. Ngf3 {[%emt 0:00:36]} Nf6 {[%emt 0:00:37]} 6. c3 Nc6 {[%emt 0:01:22]} 7. Bb5 {[%emt 0:02:38]} Bd7 {[%emt 0:01:13]} 8. O-O {[%emt 0:00:40]} cxd4 {[%emt 0:01:33]} 9. Bxc6 {[%emt 0:01:01]} Bxc6 {[%emt 0:00:36]} 10. Nxd4 {[%emt 0:00:23]} Be7 {[%emt 0:01:38]} 11. Re1 {[%emt 0:03:19]} Bd7 {[%emt 0:02:01]} 12. Qe2 {[%emt 0:02:03]} Kf8 {[%emt 0:07:27]} 13. N2b3 {[%emt 0:03:41]} Bd6 {[%emt 0:00:56]} 14. Be3 {[%emt 0:02:40]} Qc7 {[%emt 0:02:00]} 15. g3 {[%emt 0:02:01]} Ke7 {[%emt 0:03:29]} 16. Nf5+ {[%emt 0:03:21]} Bxf5 {[%emt 0:00:49]} 17. Bb6+ {[%emt 0:00:27]} Kd7 {[%emt 0:03:19]} 18. Bxc7 {[%emt 0:00:36]} Bxc7 {[%emt 0:00:35]} 19. Qe7+ {[%emt 0:01:32]} Kc8 {[%emt 0:01:08]} 20. Qxf7 {[%emt 0:01:54]} Rg8 {[%emt 0:01:29]} 21. Nc5 {[%emt 0:06:16]} Bg6 {[%emt 0:02:27]} 22. Qe6+ {[%emt 0:01:58]} Kd8 {[%emt 0:00:39]} 23. Nxb7# {normal} 1-0

[Event "DVM U12 2019"]
[Site "Magedburg"]
[Date "2019.12.30"]
[Round "7"]
[White "Adelmeyer, Nelly"]
[Black "Römer, Uri"]
[Result "1-0"]
[ECO "D04"]
[WhiteElo "1453"]
[BlackElo "1311"]
[Annotator "NA"]
[PlyCount "94"]
[EventDate "2019.12.27"]
[EventType "team-tourn"]
[EventRounds "7"]
[EventCountry "GER"]
[SourceTitle "playchess.com"]
[Source "ChessBase"]
[SourceQuality "1"]
[WhiteTeam "SV Roter Turm Halle"]
[BlackTeam "SF Brackel"]
[WhiteTeamCountry "GER"]
[TimeControl "40/5400+30:1800+30"]

1. d4 {[%emt 0:00:00]} d5 {[%emt 0:00:00]} 2. Nf3 {[%emt 0:00:00]} Nf6 {[%emt 0:00:00]} 3. e3 {[%emt 0:00:00]} Bf5 {[%emt 0:00:47]} 4. Nbd2 {[%emt 0:00:03]} e6 {[%emt 0:00:22]} 5. Be2 {[%emt 0:00:08]} Nbd7 {[%emt 0:01:34]} 6. b3 {[%emt 0:00:14]} c5 {[%emt 0:02:01]} 7. Bb2 {[%emt 0:00:16]} cxd4 {[%emt 0:01:43]} 8. Nxd4 {[%emt 0:00:12]} Bg6 9. O-O {[%emt 0:00:32]} Bc5 {[%emt 0:05:08]} 10. c4 {[%emt 0:02:53]} O-O {[%emt 0:00:49]} 11. Rc1 {[%emt 0:00:54]} Rc8 {[%emt 0:00:42]} 12. N2f3 {[%emt 0:01:23]} Ne4 {[%emt 0:05:27]} 13. cxd5 {[%emt 0:02:56]} exd5 {[%emt 0:01:20]} 14. Nc2 {[%emt 0:01:14]} Nb6 {[%emt 0:05:47]} 15. Bd3 {[%emt 0:09:29]} Re8 {[%emt 0:02:54]} 16. Ne5 {[%emt 0:07:21]} Qd6 {[%emt 0:04:57]} 17. Nxg6 {[%emt 0:00:54]} hxg6 {[%emt 0:02:37]} 18. a3 {[%emt 0:02:25]} Qe6 {[%emt 0:04:50]} 19. b4 {[%emt 0:01:35]} Bd6 {[%emt 0:02:28]} 20. Nd4 {[%emt 0:01:01]} Qd7 {[%emt 0:03:22]} 21. Bb5 {[%emt 0:00:33]} Bxh2+ {[%emt 0:06:14]} 22. Kxh2 {[%emt 0:02:45]} Qd6+ {[%emt 0:00:29]} 23. f4 {[%emt 0:12:39]} Rxc1 {[%emt 0:02:28]} 24. Qxc1 {[%emt 0:00:56]} Rc8 {[%emt 0:00:26]} 25. Qe1 {[%emt 0:01:21]} Nc4 {[%emt 0:04:07]} 26. Bxc4 {[%emt 0:09:51]} dxc4 {[%emt 0:01:45]} 27. Bc3 {[%emt 0:01:11]} g5 {[%emt 0:01:48]} 28. Nf5 {[%emt 0:02:31]} Qe6 {[%emt 0:01:52]} 29. fxg5 {[%emt 0:04:58]} Nxg5 {[%emt 0:06:19]} 30. Bxg7 {[%emt 0:01:34]} f6 {[%emt 0:03:44]} 31. Qh4 {[%emt 0:04:18]} c3 {[%emt 0:06:38]} 32. Bxf6 {[%emt 0:01:08]} Qxf6 {[%emt 0:02:08]} 33. Nh6+ {[%emt 0:00:12]} Kg7 {[%emt 0:00:30]} 34. Rxf6 {[%emt 0:00:19]} Kxf6 {[%emt 0:00:50]} 35. Qf4+ {[%emt 0:00:19]} Kg7 {[%emt 0:01:19]} 36. Qxg5+ {[%emt 0:00:07]} Kh8 {[%emt 0:01:30]} 37. Qf6+ {[%emt 0:00:23]} Kh7 {[%emt 0:00:30]} 38. Qf5+ {[%emt 0:00:10]} Kxh6 {[%emt 0:00:36]} 39. Qxc8 {[%emt 0:00:03]} c2 {[%emt 0:00:39]} 40. Qxc2 {[%emt 0:00:09]} b6 {[%emt 0:00:19]} 41. Qf5 {[%emt 0:30:16]} a5 {[%emt 0:30:22]} 42. g4 {[%emt 0:00:10]} axb4 {[%emt 0:00:18]} 43. axb4 {[%emt 0:00:06]} b5 {[%emt 0:00:07]} 44. g5+ {[%emt 0:00:13]} Kh5 {[%emt 0:00:29]} 45. g6+ {[%emt 0:00:39]} Kh4 {[%emt 0:00:39]} 46. Kg1 {[%emt 0:00:13]} Kg3 {[%emt 0:00:30]} 47. g7 {[%emt 0:00:24] normal} Kh4 {[%emt 0:00:19]} 1-0

[Event "DVM U12 2019"]
[Site "Magedburg"]
[Date "2019.12.30"]
[Round "7"]
[White "Skolnik, Andrius"]
[Black "Spinka, Georg Kamil"]
[Result "0-1"]
[ECO "B50"]
[WhiteElo "1278"]
[BlackElo "1338"]
[Annotator "NA"]
[PlyCount "80"]
[EventDate "2019.12.27"]
[EventType "team-tourn"]
[EventRounds "7"]
[EventCountry "GER"]
[SourceTitle "playchess.com"]
[Source "ChessBase"]
[SourceQuality "1"]
[WhiteTeam "SF Brackel"]
[BlackTeam "SV Roter Turm Halle"]
[TimeControl "40/5400+30:1800+30"]

1. e4 {[%emt 0:00:00]} c5 {[%emt 0:00:00]} 2. Nf3 {[%emt 0:00:00]} d6 {[%emt 0:00:00]} 3. Nc3 {[%emt 0:00:07]} g6 {[%emt 0:00:11]} 4. Bc4 {[%emt 0:00:47]} Bg7 {[%emt 0:00:25]} 5. Ng5 {[%emt 0:00:27]} e6 {[%emt 0:00:20]} 6. d3 {[%emt 0:01:04]} Nf6 {[%emt 0:00:25]} 7. Nf3 {[%emt 0:00:25]} O-O {[%emt 0:00:16]} 8. Bg5 {[%emt 0:00:25]} a6 {[%emt 0:01:42]} 9. g4 {[%emt 0:01:22]} Qc7 {[%emt 0:04:55]} 10. Bxf6 {[%emt 0:00:53]} Bxf6 {[%emt 0:00:12]} 11. g5 {[%emt 0:00:15]} Bg7 {[%emt 0:00:34]} 12. h4 {[%emt 0:00:44]} h5 {[%emt 0:12:16]} 13. gxh6 Bxh6 {[%emt 0:00:29]} 14. h5 {[%emt 0:01:09]} Kg7 {[%emt 0:16:42]} 15. hxg6 {[%emt 0:03:16]} fxg6 {[%emt 0:02:26]} 16. Nh4 {[%emt 0:00:12]} Qf7 {[%emt 0:11:12]} 17. Qe2 {[%emt 0:01:24]} Nc6 {[%emt 0:01:50]} 18. f3 {[%emt 0:01:24]} Nd4 {[%emt 0:01:53]} 19. Qh2 {[%emt 0:04:21]} Qxf3 {[%emt 0:10:51]} 20. Nxf3 {[%emt 0:01:28]} Nxf3+ {[%emt 0:00:09]} 21. Ke2 {[%emt 0:00:12]} Nxh2 {[%emt 0:00:10]} 22. Rxh2 {[%emt 0:00:32]} b5 {[%emt 0:00:55]} 23. Bb3 {[%emt 0:04:18]} Bd7 {[%emt 0:03:24]} 24. Rah1 {[%emt 0:01:16]} Rh8 {[%emt 0:05:08]} 25. Rg2 {[%emt 0:01:04]} Bf4 {[%emt 0:05:08]} 26. Rf1 {[%emt 0:02:00]} e5 {[%emt 0:05:27]} 27. Nd5 {[%emt 0:00:47]} Bh3 {[%emt 0:01:16]} 28. Rxg6+ {[%emt 0:02:13]} Kxg6 {[%emt 0:00:20]} 29. Nxf4+ {[%emt 0:00:08]} exf4 {[%emt 0:00:49]} 30. Rxf4 {[%emt 0:00:06]} Raf8 {[%emt 0:01:03]} 31. Rf3 {[%emt 0:00:44]} Rxf3 {[%emt 0:00:13]} 32. Kxf3 {[%emt 0:00:08]} Rh5 {[%emt 0:01:35]} 33. Kf4 {[%emt 0:01:03]} Kf6 {[%emt 0:01:02]} 34. c3 {[%emt 0:03:23]} Be6 {[%emt 0:00:41]} 35. c4 {[%emt 0:01:49]} bxc4 {[%emt 0:00:15]} 36. dxc4 {[%emt 0:00:11]} Bh3 {[%emt 0:01:15]} 37. Bd1 {[%emt 0:00:53]} Rg5 {[%emt 0:01:11]} 38. b3 {[%emt 0:01:06]} Rg1 {[%emt 0:03:58]} 39. Bc2 {[%emt 0:00:54]} Rg2 {[%emt 0:00:21]} 40. Bb1 {[%emt 0:00:14]} Rb2 {[%emt 0:00:13] normal} 0-1

[Event "DVM U12 2019"]
[Site "Magedburg"]
[Date "2019.12.30"]
[Round "7"]
[White "Monninkhoff, Yari"]
[Black "Negru, Maximilian"]
[Result "1-0"]
[ECO "C54"]
[WhiteElo "1272"]
[BlackElo "1267"]
[Annotator "NA"]
[PlyCount "45"]
[EventDate "2019.12.27"]
[EventType "team-tourn"]
[EventRounds "7"]
[EventCountry "GER"]
[SourceTitle "playchess.com"]
[Source "ChessBase"]
[SourceQuality "1"]
[WhiteTeam "SV Empor Berlin"]
[BlackTeam "SK Bad Homburg"]
[WhiteTeamCountry "GER"]
[TimeControl "40/5400+30:1800+30"]

1. e4 {[%emt 0:00:00]} e5 {[%emt 0:00:00]} 2. Nf3 {[%emt 0:00:00]} Nc6 {[%emt 0:00:00]} 3. Bc4 {[%emt 0:00:00]} Bc5 {[%emt 0:00:00]} 4. c3 {[%emt 0:00:10]} Nf6 {[%emt 0:00:00]} 5. d3 {[%emt 0:00:10]} d5 {[%emt 0:00:42]} 6. exd5 {[%emt 0:00:59]} Nxd5 {[%emt 0:00:18]} 7. O-O {[%emt 0:00:33]} O-O {[%emt 0:00:15]} 8. Bb3 {[%emt 0:00:44]} Re8 {[%emt 0:01:37]} 9. Re1 {[%emt 0:00:37]} Bg4 {[%emt 0:01:25]} 10. Bc2 {[%emt 0:01:48]} Nf6 {[%emt 0:01:19]} 11. Bg5 {[%emt 0:00:42]} Qd6 {[%emt 0:01:51]} 12. Nbd2 {[%emt 0:01:26]} Bb6 {[%emt 0:17:25]} 13. Nc4 {[%emt 0:13:37]} Qe6 {[%emt 0:10:24]} 14. Nxb6 {[%emt 0:01:52]} axb6 {[%emt 0:00:58]} 15. Qe2 {[%emt 0:01:29]} Nd5 {[%emt 0:06:19]} 16. d4 {[%emt 0:02:27]} f6 {[%emt 0:03:21]} 17. Bd2 {[%emt 0:01:32]} Rad8 {[%emt 0:12:17]} 18. Qd3 {[%emt 0:02:03]} g6 {[%emt 0:03:03]} 19. Nh4 {[%emt 0:02:40]} f5 {[%emt 0:02:30]} 20. dxe5 {[%emt 0:03:50]} Nxe5 {[%emt 0:06:50]} 21. Qg3 {[%emt 0:01:32]} Qf6 {[%emt 0:01:48]} 22. h3 {[%emt 0:05:58] normal} Bh5 {[%emt 0:01:20]} 23. Bg5 {[%emt 0:01:03] normal} 1-0